[Event "Titled Tuesday Blitz November 07 Early 2023"]
[White "Vigoa Apecheche, Yanira"]
[Black "Ahmad, Khagan"]
[WhiteFideId "3507041"]
[BlackFideId "13431552"]
[WhiteElo "2370"]
[BlackElo "2506"]
[Result "0-1"]
[Round "6"]
[TimeControl "180+1"]
[Date "2023.11.07"]
[WhiteClock "0:01:05"]
[BlackClock "0:00:09"]
[Board "138"]

1. d4 {[%clk 0:03:00]}  Nf6 {[%clk 0:02:57]} 2. Bg5 {[%clk 0:02:59]}  e6 {[%clk 0:02:55]} 3. Nd2 {[%clk 0:02:56]}  h6 {[%clk 0:02:50]} 4. Bh4 {[%clk 0:02:53]}  d5 {[%clk 0:02:48]} 5. Ngf3 {[%clk 0:02:51]}  c5 {[%clk 0:02:46]} 6. e3 {[%clk 0:02:49]}  Nc6 {[%clk 0:02:46]} 7. c3 {[%clk 0:02:49]}  Be7 {[%clk 0:02:46]} 8. Bd3 {[%clk 0:02:48]}  Nd7 {[%clk 0:02:44]} 9. Bg3 {[%clk 0:02:47]}  f5 {[%clk 0:02:41]} 10. Ne5 {[%clk 0:02:37]}  Ndxe5 {[%clk 0:02:33]} 11. dxe5 {[%clk 0:02:37]}  O-O {[%clk 0:02:15]} 12. Qe2 {[%clk 0:02:35]}  Bh4 {[%clk 0:02:07]} 13. O-O-O {[%clk 0:02:32]}  Bxg3 {[%clk 0:02:07]} 14. hxg3 {[%clk 0:02:33]}  Nxe5 {[%clk 0:02:08]} 15. Bc2 {[%clk 0:02:29]}  Bd7 {[%clk 0:02:02]} 16. f3 {[%clk 0:02:28]}  Qa5 {[%clk 0:02:02]} 17. Kb1 {[%clk 0:02:25]}  Bb5 {[%clk 0:02:02]} 18. Qf2 {[%clk 0:02:24]}  Bd3 {[%clk 0:01:53]} 19. Nb3 {[%clk 0:02:18]}  Bxc2+ {[%clk 0:01:47]} 20. Qxc2 {[%clk 0:02:19]}  Qb5 {[%clk 0:01:47]} 21. e4 {[%clk 0:02:15]}  fxe4 {[%clk 0:01:42]} 22. fxe4 {[%clk 0:02:15]}  Nc4 {[%clk 0:01:11]} 23. exd5 {[%clk 0:01:53]}  exd5 {[%clk 0:00:54]} 24. Rxd5 {[%clk 0:01:44]}  Ne3 {[%clk 0:00:41]} 25. Qd3 {[%clk 0:01:43]}  Qxd3+ {[%clk 0:00:34]} 26. Rxd3 {[%clk 0:01:44]}  Ng4 {[%clk 0:00:35]} 27. Rf3 {[%clk 0:01:40]}  b6 {[%clk 0:00:34]} 28. Rhf1 {[%clk 0:01:35]}  Nh2 {[%clk 0:00:29]} 29. Rxf8+ {[%clk 0:01:34]}  Rxf8 {[%clk 0:00:30]} 30. Rxf8+ {[%clk 0:01:32]}  Kxf8 {[%clk 0:00:30]} 31. Nd2 {[%clk 0:01:29]}  Ke7 {[%clk 0:00:28]} 32. Kc2 {[%clk 0:01:29]}  Ng4 {[%clk 0:00:25]} 33. Kd3 {[%clk 0:01:27]}  Ke6 {[%clk 0:00:24]} 34. Ke4 {[%clk 0:01:26]}  g5 {[%clk 0:00:23]} 35. Nc4 {[%clk 0:01:22]}  Nf6+ {[%clk 0:00:23]} 36. Kf3 {[%clk 0:01:21]}  Kf5 {[%clk 0:00:16]} 37. Nd6+ {[%clk 0:01:16]}  Ke6 {[%clk 0:00:16]} 38. Nc4 {[%clk 0:01:15]}  h5 {[%clk 0:00:13]} 39. a4 {[%clk 0:01:12]}  Kd5 {[%clk 0:00:13]} 40. Ne3+ {[%clk 0:01:11]}  Ke6 {[%clk 0:00:07]} 41. Nc4 {[%clk 0:01:11]}  Ng8 {[%clk 0:00:05]} 42. b3 {[%clk 0:01:09]}  Ne7 {[%clk 0:00:05]} 43. g4 {[%clk 0:01:07]}  h4 {[%clk 0:00:04]} 44. Ne3 {[%clk 0:01:06]}  Nd5 {[%clk 0:00:04]} 45. Nxd5 {[%clk 0:01:04]}  Kxd5 {[%clk 0:00:04]} 46. Ke3 {[%clk 0:01:03]}  a5 {[%clk 0:00:02]} 47. c4+ {[%clk 0:01:01]}  Ke5 {[%clk 0:00:02]} 48. Kf3 {[%clk 0:01:01]}  Kd4 {[%clk 0:00:02]} 49. g3 {[%clk 0:01:01]}  hxg3 {[%clk 0:00:01]} 50. Kxg3 {[%clk 0:01:01]}  Ke3 {[%clk 0:00:02]} 51. Kg2 {[%clk 0:01:01]}  Kf4 {[%clk 0:00:03]} 52. Kf2 {[%clk 0:01:01]}  Kxg4 {[%clk 0:00:03]} 53. Kg2 {[%clk 0:01:01]}  Kf4 {[%clk 0:00:04]} 54. Kf2 {[%clk 0:01:02]}  Ke4 {[%clk 0:00:04]} 55. Kg3 {[%clk 0:01:02]}  Kd3 {[%clk 0:00:05]} 56. Kg4 {[%clk 0:01:03]}  Kc3 {[%clk 0:00:06]} 57. Kxg5 {[%clk 0:01:03]}  Kxb3 {[%clk 0:00:06]} 58. Kf5 {[%clk 0:01:04]}  Kxa4 {[%clk 0:00:07]} 59. Ke5 {[%clk 0:01:05]}  Kb4 {[%clk 0:00:08]} 60. Kd6 {[%clk 0:01:06]}  Kxc4 {[%clk 0:00:08]} 61. Kc6 {[%clk 0:01:07]}  b5 {[%clk 0:00:09]} 62. Kb6 {[%clk 0:01:05]}  a4 {[%clk 0:00:09]} 0-1


[Site "https://www.chess.com"]

[Event "Titled Tuesday Blitz November 07 Early 2023"]
[White "Ovezdurdyyeva, Jemal"]
[Black "ChainedDowntohell"]
[WhiteFideId "14001888"]
[WhiteElo "2369"]
[BlackElo "2503"]
[Result "0-1"]
[Round "6"]
[TimeControl "180+1"]
[Date "2023.11.07"]
[WhiteClock "0:00:00"]
[BlackClock "0:00:16"]
[Board "139"]

1. e4 {[%clk 0:03:00]}  g6 {[%clk 0:02:57]} 2. d4 {[%clk 0:03:00]}  Bg7 {[%clk 0:02:57]} 3. Nf3 {[%clk 0:03:00]}  d6 {[%clk 0:02:57]} 4. h3 {[%clk 0:02:58]}  Nd7 {[%clk 0:02:54]} 5. Be2 {[%clk 0:02:57]}  a6 {[%clk 0:02:54]} 6. O-O {[%clk 0:02:57]}  b5 {[%clk 0:02:54]} 7. Be3 {[%clk 0:02:51]}  Bb7 {[%clk 0:02:53]} 8. Nbd2 {[%clk 0:02:46]}  c5 {[%clk 0:02:51]} 9. c3 {[%clk 0:02:45]}  Ngf6 {[%clk 0:02:44]} 10. e5 {[%clk 0:02:44]}  Nd5 {[%clk 0:02:43]} 11. exd6 {[%clk 0:02:31]}  Nxe3 {[%clk 0:02:37]} 12. fxe3 {[%clk 0:02:27]}  exd6 {[%clk 0:02:36]} 13. Qe1 {[%clk 0:02:16]}  O-O {[%clk 0:02:34]} 14. Qg3 {[%clk 0:02:15]}  Nf6 {[%clk 0:02:32]} 15. Rae1 {[%clk 0:02:09]}  Qe7 {[%clk 0:02:29]} 16. Bd3 {[%clk 0:02:08]}  Rae8 {[%clk 0:02:23]} 17. e4 {[%clk 0:02:05]}  Nh5 {[%clk 0:02:23]} 18. Qf2 {[%clk 0:01:53]}  Bh6 {[%clk 0:02:22]} 19. e5 {[%clk 0:01:46]}  Bf4 {[%clk 0:02:19]} 20. Ne4 {[%clk 0:01:24]}  dxe5 {[%clk 0:02:06]} 21. dxc5 {[%clk 0:01:19]}  Bxe4 {[%clk 0:02:01]} 22. Bxe4 {[%clk 0:01:11]}  Bg3 {[%clk 0:02:00]} 23. Qe3 {[%clk 0:01:04]}  Bxe1 {[%clk 0:01:57]} 24. Rxe1 {[%clk 0:01:04]}  Nf4 {[%clk 0:01:51]} 25. Rf1 {[%clk 0:01:02]}  Kh8 {[%clk 0:01:50]} 26. Bc2 {[%clk 0:00:58]}  Nd5 {[%clk 0:01:40]} 27. Qh6 {[%clk 0:00:57]}  f6 {[%clk 0:01:12]} 28. Bxg6 {[%clk 0:00:50]}  Rd8 {[%clk 0:01:08]} 29. Bc2 {[%clk 0:00:15]}  Qg7 {[%clk 0:01:06]} 30. Qh5 {[%clk 0:00:13]}  Ne3 {[%clk 0:00:55]} 31. Rf2 {[%clk 0:00:13]}  Nxc2 {[%clk 0:00:41]} 32. Rxc2 {[%clk 0:00:14]}  e4 {[%clk 0:00:41]} 33. Nh4 {[%clk 0:00:13]}  Qg3 {[%clk 0:00:42]} 34. Nf5 {[%clk 0:00:11]}  Qf4 {[%clk 0:00:33]} 35. Rf2 {[%clk 0:00:08]}  Qg5 {[%clk 0:00:31]} 36. Qxg5 {[%clk 0:00:07]}  fxg5 {[%clk 0:00:32]} 37. Nd4 {[%clk 0:00:06]}  e3 {[%clk 0:00:25]} 38. Re2 {[%clk 0:00:04]}  Rfe8 {[%clk 0:00:23]} 39. b4 {[%clk 0:00:03]}  Kg7 {[%clk 0:00:21]} 40. g4 {[%clk 0:00:03]}  Kf6 {[%clk 0:00:21]} 41. Kg2 {[%clk 0:00:04]}  Rd5 {[%clk 0:00:16]} 42. Kf3 {[%clk 0:00:00]}  Rde5 {[%clk 0:00:16]} 0-1


[Site "https://www.chess.com"]

[Event "Titled Tuesday Blitz November 07 Early 2023"]
[White "Harriott, Tyrell"]
[Black "Khater, Sherif"]
[WhiteFideId "2086484"]
[BlackFideId "2034280"]
[WhiteElo "2338"]
[BlackElo "2496"]
[Result "1-0"]
[Round "6"]
[TimeControl "180+1"]
[Date "2023.11.07"]
[WhiteClock "0:00:59"]
[BlackClock "0:00:15"]
[Board "141"]

1. d4 {[%clk 0:03:00]}  a6 {[%clk 0:02:58]} 2. e3 {[%clk 0:03:00]}  g6 {[%clk 0:02:57]} 3. Bd3 {[%clk 0:03:00]}  Bg7 {[%clk 0:02:57]} 4. f4 {[%clk 0:02:59]}  d6 {[%clk 0:02:58]} 5. Nf3 {[%clk 0:03:00]}  Nf6 {[%clk 0:02:56]} 6. O-O {[%clk 0:03:00]}  O-O {[%clk 0:02:56]} 7. Nbd2 {[%clk 0:02:59]}  Nbd7 {[%clk 0:02:57]} 8. f5 {[%clk 0:02:59]}  c5 {[%clk 0:02:54]} 9. Qe1 {[%clk 0:02:59]}  b5 {[%clk 0:02:54]} 10. c3 {[%clk 0:02:58]}  Bb7 {[%clk 0:02:55]} 11. Qh4 {[%clk 0:02:56]}  Rc8 {[%clk 0:02:46]} 12. fxg6 {[%clk 0:02:54]}  hxg6 {[%clk 0:02:46]} 13. Ng5 {[%clk 0:02:54]}  Qb6 {[%clk 0:02:28]} 14. Nde4 {[%clk 0:02:28]}  Bxe4 {[%clk 0:02:11]} 15. Bxe4 {[%clk 0:02:29]}  cxd4 {[%clk 0:02:03]} 16. exd4 {[%clk 0:02:30]}  b4 {[%clk 0:01:43]} 17. Bd2 {[%clk 0:02:14]}  bxc3 {[%clk 0:01:43]} 18. Bxc3 {[%clk 0:02:13]}  e5 {[%clk 0:01:33]} 19. Rad1 {[%clk 0:02:06]}  d5 {[%clk 0:01:22]} 20. Bxd5 {[%clk 0:02:03]}  Rxc3 {[%clk 0:00:31]} 21. bxc3 {[%clk 0:02:00]}  exd4 {[%clk 0:00:31]} 22. cxd4 {[%clk 0:01:58]}  Qd6 {[%clk 0:00:28]} 23. Bb3 {[%clk 0:01:54]}  a5 {[%clk 0:00:28]} 24. Ba4 {[%clk 0:01:50]}  Nh5 {[%clk 0:00:20]} 25. Bb3 {[%clk 0:01:35]}  Ndf6 {[%clk 0:00:19]} 26. g4 {[%clk 0:01:27]}  Nf4 {[%clk 0:00:19]} 27. Rf2 {[%clk 0:01:04]}  a4 {[%clk 0:00:19]} 28. Bc4 {[%clk 0:01:00]}  Nd7 {[%clk 0:00:15]} 29. Qh7# {[%clk 0:00:59]} 1-0


[Site "https://www.chess.com"]

[Event "Titled Tuesday Blitz November 07 Early 2023"]
[White "Reprintsev, Alexander"]
[Black "SlippperyWhenWet"]
[WhiteFideId "14100541"]
[WhiteElo "2496"]
[BlackElo "2334"]
[Result "1/2-1/2"]
[Round "6"]
[TimeControl "180+1"]
[Date "2023.11.07"]
[WhiteClock "0:00:37"]
[BlackClock "0:00:05"]
[Board "142"]

1. e4 {[%clk 0:03:00]}  c5 {[%clk 0:02:58]} 2. b3 {[%clk 0:03:00]}  g6 {[%clk 0:02:57]} 3. Bb2 {[%clk 0:03:00]}  Nf6 {[%clk 0:02:58]} 4. e5 {[%clk 0:03:00]}  Nd5 {[%clk 0:02:58]} 5. Nc3 {[%clk 0:03:01]}  Nxc3 {[%clk 0:02:58]} 6. dxc3 {[%clk 0:03:02]}  Bg7 {[%clk 0:02:58]} 7. Qd5 {[%clk 0:03:00]}  O-O {[%clk 0:02:56]} 8. Qxc5 {[%clk 0:02:58]}  d6 {[%clk 0:02:55]} 9. exd6 {[%clk 0:02:56]}  exd6 {[%clk 0:02:55]} 10. Qd5 {[%clk 0:02:56]}  Nc6 {[%clk 0:02:53]} 11. O-O-O {[%clk 0:02:55]}  a5 {[%clk 0:02:46]} 12. a4 {[%clk 0:02:54]}  Qf6 {[%clk 0:02:39]} 13. Nf3 {[%clk 0:02:52]}  Bf5 {[%clk 0:02:38]} 14. Bd3 {[%clk 0:02:50]}  Nb4 {[%clk 0:02:32]} 15. Qd4 {[%clk 0:02:35]}  Nxd3+ {[%clk 0:01:49]} 16. cxd3 {[%clk 0:02:17]}  Qxd4 {[%clk 0:01:48]} 17. cxd4 {[%clk 0:02:16]}  Rac8+ {[%clk 0:01:46]} 18. Kb1 {[%clk 0:02:13]}  Rfe8 {[%clk 0:01:45]} 19. Rd2 {[%clk 0:02:13]}  Bh6 {[%clk 0:01:44]} 20. Rdd1 {[%clk 0:02:03]}  Re2 {[%clk 0:01:40]} 21. Bc1 {[%clk 0:02:01]}  Bxc1 {[%clk 0:01:00]} 22. Rxc1 {[%clk 0:02:01]}  Bxd3+ {[%clk 0:01:00]} 23. Ka1 {[%clk 0:02:02]}  Rxc1+ {[%clk 0:00:53]} 24. Rxc1 {[%clk 0:02:01]}  Rxf2 {[%clk 0:00:53]} 25. Rc8+ {[%clk 0:01:45]}  Kg7 {[%clk 0:00:53]} 26. Rc7 {[%clk 0:01:46]}  Be4 {[%clk 0:00:51]} 27. Ng5 {[%clk 0:01:43]}  Bxg2 {[%clk 0:00:48]} 28. h4 {[%clk 0:01:40]}  Bd5 {[%clk 0:00:47]} 29. Rd7 {[%clk 0:01:34]}  Bxb3 {[%clk 0:00:45]} 30. Rxb7 {[%clk 0:01:30]}  Bxa4 {[%clk 0:00:39]} 31. Ne6+ {[%clk 0:01:30]}  Kh6 {[%clk 0:00:35]} 32. Nd8 {[%clk 0:01:30]}  Be8 {[%clk 0:00:27]} 33. Re7 {[%clk 0:01:29]}  Bb5 {[%clk 0:00:19]} 34. Nxf7+ {[%clk 0:01:28]}  Kh5 {[%clk 0:00:20]} 35. Ng5 {[%clk 0:01:28]}  h6 {[%clk 0:00:18]} 36. Ne4 {[%clk 0:01:27]}  Rf1+ {[%clk 0:00:18]} 37. Kb2 {[%clk 0:01:27]}  Kxh4 {[%clk 0:00:18]} 38. Nxd6 {[%clk 0:01:23]}  Bd3 {[%clk 0:00:18]} 39. Kc3 {[%clk 0:01:23]}  Bb1 {[%clk 0:00:18]} 40. d5 {[%clk 0:01:17]}  g5 {[%clk 0:00:17]} 41. Nc4 {[%clk 0:01:13]}  g4 {[%clk 0:00:14]} 42. d6 {[%clk 0:01:12]}  Bf5 {[%clk 0:00:12]} 43. d7 {[%clk 0:01:12]}  Bxd7 {[%clk 0:00:11]} 44. Rxd7 {[%clk 0:01:12]}  g3 {[%clk 0:00:11]} 45. Ne3 {[%clk 0:01:10]}  Rf3 {[%clk 0:00:11]} 46. Kd2 {[%clk 0:01:10]}  Rf2+ {[%clk 0:00:11]} 47. Kd3 {[%clk 0:01:10]}  Ra2 {[%clk 0:00:10]} 48. Ke4 {[%clk 0:01:05]}  Kh3 {[%clk 0:00:07]} 49. Rh7 {[%clk 0:01:03]}  g2 {[%clk 0:00:07]} 50. Rxh6+ {[%clk 0:01:03]}  Kg3 {[%clk 0:00:08]} 51. Rg6+ {[%clk 0:01:03]}  Kh2 {[%clk 0:00:08]} 52. Kf3 {[%clk 0:01:03]}  g1=N+ {[%clk 0:00:05]} 53. Ke4 {[%clk 0:01:02]}  Nh3 {[%clk 0:00:05]} 54. Nf1+ {[%clk 0:00:55]}  Kh1 {[%clk 0:00:04]} 55. Ng3+ {[%clk 0:00:55]}  Kh2 {[%clk 0:00:04]} 56. Kd4 {[%clk 0:00:51]}  a4 {[%clk 0:00:04]} 57. Nf1+ {[%clk 0:00:50]}  Kh1 {[%clk 0:00:04]} 58. Ng3+ {[%clk 0:00:50]}  Kh2 {[%clk 0:00:04]} 59. Nf1+ {[%clk 0:00:50]}  Kh1 {[%clk 0:00:05]} 60. Ng3+ {[%clk 0:00:46]}  Kg2 {[%clk 0:00:05]} 61. Ne4+ {[%clk 0:00:45]}  Kf3 {[%clk 0:00:05]} 62. Nc3 {[%clk 0:00:43]}  Nf4 {[%clk 0:00:04]} 63. Nxa2 {[%clk 0:00:36]}  Nxg6 {[%clk 0:00:03]} 64. Kc4 {[%clk 0:00:37]}  Nf4 {[%clk 0:00:04]} 65. Kb4 {[%clk 0:00:37]}  Ke3 {[%clk 0:00:05]} 66. Kxa4 {[%clk 0:00:37]} 1/2-1/2


[Site "https://www.chess.com"]

[Event "Titled Tuesday Blitz November 07 Early 2023"]
[White "MIss_MIaMI"]
[Black "Hajiyev, Kanan"]
[BlackFideId "13404148"]
[WhiteElo "2328"]
[BlackElo "2495"]
[Result "0-1"]
[Round "6"]
[TimeControl "180+1"]
[Date "2023.11.07"]
[WhiteClock "0:00:38"]
[BlackClock "0:01:47"]
[Board "143"]

1. e4 {[%clk 0:02:59]}  c6 {[%clk 0:03:00]} 2. d4 {[%clk 0:02:59]}  d5 {[%clk 0:03:01]} 3. exd5 {[%clk 0:03:00]}  cxd5 {[%clk 0:03:02]} 4. Bb5+ {[%clk 0:03:00]}  Bd7 {[%clk 0:03:02]} 5. Bd3 {[%clk 0:03:00]}  Nc6 {[%clk 0:03:02]} 6. c3 {[%clk 0:03:00]}  Nf6 {[%clk 0:03:02]} 7. h3 {[%clk 0:03:01]}  g6 {[%clk 0:03:02]} 8. Nf3 {[%clk 0:03:01]}  Bg7 {[%clk 0:03:03]} 9. O-O {[%clk 0:03:02]}  O-O {[%clk 0:03:04]} 10. Re1 {[%clk 0:03:02]}  Rb8 {[%clk 0:03:05]} 11. Bf4 {[%clk 0:03:02]}  Rc8 {[%clk 0:03:03]} 12. Nbd2 {[%clk 0:02:58]}  Qb6 {[%clk 0:03:03]} 13. Rb1 {[%clk 0:02:56]}  Rfe8 {[%clk 0:03:03]} 14. Ne5 {[%clk 0:02:54]}  Nxe5 {[%clk 0:03:03]} 15. Bxe5 {[%clk 0:02:55]}  Bb5 {[%clk 0:03:00]} 16. Nf3 {[%clk 0:02:45]}  Bxd3 {[%clk 0:02:59]} 17. Qxd3 {[%clk 0:02:46]}  a6 {[%clk 0:02:54]} 18. Re2 {[%clk 0:02:32]}  Qc6 {[%clk 0:02:54]} 19. Rbe1 {[%clk 0:02:30]}  e6 {[%clk 0:02:52]} 20. Nd2 {[%clk 0:02:16]}  b5 {[%clk 0:02:52]} 21. Nb3 {[%clk 0:02:15]}  Qc4 {[%clk 0:02:45]} 22. Qxc4 {[%clk 0:02:10]}  bxc4 {[%clk 0:02:43]} 23. Nc5 {[%clk 0:02:10]}  a5 {[%clk 0:02:40]} 24. f3 {[%clk 0:01:57]}  Nh5 {[%clk 0:02:25]} 25. Bxg7 {[%clk 0:01:52]}  Kxg7 {[%clk 0:02:25]} 26. b3 {[%clk 0:01:38]}  Nf4 {[%clk 0:02:23]} 27. Rc2 {[%clk 0:01:39]}  Nd3 {[%clk 0:02:13]} 28. Nxd3 {[%clk 0:01:14]}  cxd3 {[%clk 0:02:14]} 29. Rd2 {[%clk 0:01:15]}  Rxc3 {[%clk 0:02:13]} 30. Re3 {[%clk 0:01:16]}  Rec8 {[%clk 0:02:07]} 31. Rexd3 {[%clk 0:01:16]}  Rxd3 {[%clk 0:02:07]} 32. Rxd3 {[%clk 0:01:17]}  Rc2 {[%clk 0:02:08]} 33. a4 {[%clk 0:01:05]}  h5 {[%clk 0:02:06]} 34. h4 {[%clk 0:01:05]}  Kf6 {[%clk 0:02:05]} 35. Kh2 {[%clk 0:01:05]}  Kf5 {[%clk 0:02:05]} 36. Kg3 {[%clk 0:01:03]}  Rb2 {[%clk 0:02:05]} 37. Rc3 {[%clk 0:01:03]}  Rd2 {[%clk 0:02:05]} 38. Rc5 {[%clk 0:01:03]}  Rxd4 {[%clk 0:02:03]} 39. Rxa5 {[%clk 0:01:04]}  Rb4 {[%clk 0:01:57]} 40. Rb5 {[%clk 0:00:56]}  Rxb5 {[%clk 0:01:57]} 41. axb5 {[%clk 0:00:56]}  Ke5 {[%clk 0:01:58]} 42. b4 {[%clk 0:00:49]}  Kd6 {[%clk 0:01:55]} 43. Kf4 {[%clk 0:00:48]}  e5+ {[%clk 0:01:52]} 44. Ke3 {[%clk 0:00:42]}  Kc7 {[%clk 0:01:52]} 45. g4 {[%clk 0:00:42]}  Kb6 {[%clk 0:01:50]} 46. gxh5 {[%clk 0:00:38]}  gxh5 {[%clk 0:01:51]} 47. f4 {[%clk 0:00:39]}  f6 {[%clk 0:01:51]} 48. fxe5 {[%clk 0:00:39]}  fxe5 {[%clk 0:01:51]} 49. Kd3 {[%clk 0:00:39]}  Kxb5 {[%clk 0:01:52]} 50. Kc3 {[%clk 0:00:40]}  d4+ {[%clk 0:01:49]} 51. Kd3 {[%clk 0:00:40]}  Kxb4 {[%clk 0:01:49]} 52. Ke4 {[%clk 0:00:40]}  Kc3 {[%clk 0:01:49]} 53. Kf5 {[%clk 0:00:41]}  d3 {[%clk 0:01:49]} 54. Kg5 {[%clk 0:00:41]}  d2 {[%clk 0:01:49]} 55. Kxh5 {[%clk 0:00:42]}  d1=Q+ {[%clk 0:01:49]} 56. Kg5 {[%clk 0:00:43]}  Qg1+ {[%clk 0:01:48]} 57. Kf6 {[%clk 0:00:41]}  Qg4 {[%clk 0:01:47]} 58. Kxe5 {[%clk 0:00:38]}  Qxh4 {[%clk 0:01:47]} 0-1


[Site "https://www.chess.com"]

[Event "Titled Tuesday Blitz November 07 Early 2023"]
[White "Petrova, Irina"]
[Black "Lehtosaari, Mauri"]
[WhiteFideId "14124122"]
[BlackFideId "501999"]
[WhiteElo "2324"]
[BlackElo "2493"]
[Result "0-1"]
[Round "6"]
[TimeControl "180+1"]
[Date "2023.11.07"]
[WhiteClock "0:01:38"]
[BlackClock "0:01:25"]
[Board "144"]

1. e4 {[%clk 0:03:00]}  d5 {[%clk 0:02:58]} 2. exd5 {[%clk 0:02:59]}  Qxd5 {[%clk 0:02:59]} 3. Nc3 {[%clk 0:03:00]}  Qd8 {[%clk 0:02:59]} 4. d4 {[%clk 0:03:00]}  Nf6 {[%clk 0:02:58]} 5. Bc4 {[%clk 0:03:00]}  a6 {[%clk 0:02:51]} 6. a4 {[%clk 0:02:59]}  Bg4 {[%clk 0:02:48]} 7. Nge2 {[%clk 0:02:58]}  e6 {[%clk 0:02:47]} 8. O-O {[%clk 0:02:56]}  Be7 {[%clk 0:02:46]} 9. h3 {[%clk 0:02:48]}  Bh5 {[%clk 0:02:45]} 10. Bf4 {[%clk 0:02:47]}  O-O {[%clk 0:02:43]} 11. Qd2 {[%clk 0:02:47]}  c6 {[%clk 0:02:36]} 12. Ng3 {[%clk 0:02:46]}  Bg6 {[%clk 0:02:36]} 13. Rad1 {[%clk 0:02:45]}  Nbd7 {[%clk 0:02:36]} 14. Rfe1 {[%clk 0:02:44]}  Nb6 {[%clk 0:02:35]} 15. Bd3 {[%clk 0:02:43]}  Bb4 {[%clk 0:02:34]} 16. Bxg6 {[%clk 0:02:43]}  hxg6 {[%clk 0:02:34]} 17. Qe2 {[%clk 0:02:38]}  Nbd5 {[%clk 0:02:26]} 18. Nxd5 {[%clk 0:02:36]}  Nxd5 {[%clk 0:02:15]} 19. Bd2 {[%clk 0:02:36]}  Bxd2 {[%clk 0:02:14]} 20. Qxd2 {[%clk 0:02:35]}  b5 {[%clk 0:02:12]} 21. axb5 {[%clk 0:02:34]}  axb5 {[%clk 0:02:10]} 22. Ne4 {[%clk 0:02:34]}  Ra2 {[%clk 0:02:09]} 23. c3 {[%clk 0:02:33]}  Qh4 {[%clk 0:02:08]} 24. Nc5 {[%clk 0:02:29]}  Rfa8 {[%clk 0:02:03]} 25. Rb1 {[%clk 0:02:12]}  Qf4 {[%clk 0:01:52]} 26. Qxf4 {[%clk 0:02:10]}  Nxf4 {[%clk 0:01:53]} 27. Kh2 {[%clk 0:02:09]}  g5 {[%clk 0:01:42]} 28. g3 {[%clk 0:02:09]}  Nd5 {[%clk 0:01:42]} 29. Re5 {[%clk 0:02:07]}  Ra1 {[%clk 0:01:39]} 30. Rxa1 {[%clk 0:02:03]}  Rxa1 {[%clk 0:01:40]} 31. Rxg5 {[%clk 0:01:58]}  Rb1 {[%clk 0:01:39]} 32. Nd3 {[%clk 0:01:50]}  Rd1 {[%clk 0:01:34]} 33. Ne5 {[%clk 0:01:49]}  f6 {[%clk 0:01:26]} 34. Rg4 {[%clk 0:01:43]}  fxe5 {[%clk 0:01:25]} 35. dxe5 {[%clk 0:01:43]}  Rd2 {[%clk 0:01:26]} 36. Kg2 {[%clk 0:01:38]}  Ne3+ {[%clk 0:01:25]} 0-1


[Site "https://www.chess.com"]

[Event "Titled Tuesday Blitz November 07 Early 2023"]
[White "Ardila, Oscar Humberto"]
[Black "Grossboss19"]
[WhiteFideId "4404742"]
[WhiteElo "2323"]
[BlackElo "2492"]
[Result "0-1"]
[Round "6"]
[TimeControl "180+1"]
[Date "2023.11.07"]
[WhiteClock "0:00:00"]
[BlackClock "0:00:08"]
[Board "145"]

1. d4 {[%clk 0:03:00]}  Nf6 {[%clk 0:02:57]} 2. c4 {[%clk 0:02:59]}  e6 {[%clk 0:02:52]} 3. Nc3 {[%clk 0:02:59]}  Bb4 {[%clk 0:02:51]} 4. Bd2 {[%clk 0:02:59]}  O-O {[%clk 0:02:47]} 5. Nf3 {[%clk 0:02:59]}  d5 {[%clk 0:02:46]} 6. e3 {[%clk 0:02:58]}  a6 {[%clk 0:02:38]} 7. Qc2 {[%clk 0:02:55]}  Nbd7 {[%clk 0:02:30]} 8. cxd5 {[%clk 0:02:48]}  exd5 {[%clk 0:02:25]} 9. Bd3 {[%clk 0:02:48]}  c6 {[%clk 0:02:23]} 10. O-O {[%clk 0:02:47]}  h6 {[%clk 0:02:22]} 11. a3 {[%clk 0:02:32]}  Bd6 {[%clk 0:02:21]} 12. b4 {[%clk 0:02:32]}  Re8 {[%clk 0:02:14]} 13. Ne2 {[%clk 0:02:28]}  Qe7 {[%clk 0:02:11]} 14. Ng3 {[%clk 0:02:26]}  Nf8 {[%clk 0:01:58]} 15. Rfc1 {[%clk 0:02:23]}  Ne4 {[%clk 0:01:52]} 16. Be1 {[%clk 0:02:09]}  f5 {[%clk 0:01:49]} 17. Rab1 {[%clk 0:01:56]}  g5 {[%clk 0:01:38]} 18. Bc3 {[%clk 0:01:38]}  f4 {[%clk 0:01:21]} 19. exf4 {[%clk 0:01:30]}  gxf4 {[%clk 0:01:21]} 20. Bxe4 {[%clk 0:01:12]}  dxe4 {[%clk 0:01:03]} 21. Re1 {[%clk 0:00:54]}  fxg3 {[%clk 0:01:00]} 22. hxg3 {[%clk 0:00:54]}  Bf5 {[%clk 0:00:54]} 23. Nh4 {[%clk 0:00:53]}  Bh7 {[%clk 0:00:50]} 24. Qd2 {[%clk 0:00:53]}  Qg5 {[%clk 0:00:47]} 25. Qa2+ {[%clk 0:00:52]}  Qd5 {[%clk 0:00:41]} 26. Qb2 {[%clk 0:00:49]}  e3 {[%clk 0:00:38]} 27. Rbc1 {[%clk 0:00:46]}  Re6 {[%clk 0:00:29]} 28. f4 {[%clk 0:00:40]}  Rae8 {[%clk 0:00:27]} 29. Qe2 {[%clk 0:00:40]}  h5 {[%clk 0:00:19]} 30. a4 {[%clk 0:00:34]}  R6e7 {[%clk 0:00:18]} 31. b5 {[%clk 0:00:33]}  cxb5 {[%clk 0:00:18]} 32. axb5 {[%clk 0:00:34]}  axb5 {[%clk 0:00:18]} 33. Ra1 {[%clk 0:00:24]}  Ng6 {[%clk 0:00:18]} 34. Nf3 {[%clk 0:00:24]}  h4 {[%clk 0:00:17]} 35. Ng5 {[%clk 0:00:22]}  hxg3 {[%clk 0:00:15]} 36. Qh5 {[%clk 0:00:23]}  Nxf4 {[%clk 0:00:14]} 37. Qh6 {[%clk 0:00:23]}  Qf5 {[%clk 0:00:12]} 38. d5 {[%clk 0:00:21]}  Qg6 {[%clk 0:00:11]} 39. Qh4 {[%clk 0:00:20]}  Nh5 {[%clk 0:00:09]} 40. Bd4 {[%clk 0:00:09]}  Bf4 {[%clk 0:00:09]} 41. Nf3 {[%clk 0:00:08]}  Re4 {[%clk 0:00:08]} 42. Bc5 {[%clk 0:00:03]}  Bh6 {[%clk 0:00:08]} 43. d6 {[%clk 0:00:03]}  Rxh4 {[%clk 0:00:07]} 44. Nxh4 {[%clk 0:00:03]}  Qe6 {[%clk 0:00:07]} 45. d7 {[%clk 0:00:03]}  Qxd7 {[%clk 0:00:07]} 46. Rad1 {[%clk 0:00:00]}  Qc6 {[%clk 0:00:08]} 0-1


[Site "https://www.chess.com"]